bitfinex-derivatives/quotes_ETHF0:USTF0_20250107
["timestamp","ask_amount","ask_price","bid_price","bid_amount"]
[1736261653847,7.043705,3616.0,3615.3,1.455]
[1736261654147,0.2766,3615.8,3615.6,0.27661]
[1736261654441,0.2766,3615.8,3615.7,40.8]
[1736261655045,2.95179551,3616.0,3614.9,2.5862]
[1736261655241,0.27664,3615.4,3615.0,1.455]
[1736261655445,6.85714326,3616.0,3615.2,3.2078]
[1736261655642,6.85714326,3616.0,3615.3,40.8]
[1736261655945,6.85714326,3616.0,3615.5,0.27662]
[1736261655946,0.27662,3615.6,3615.5,0.27662]
[1736261656148,6.85714326,3616.0,3615.5,0.27662]
[1736261656345,0.27662,3615.6,3615.5,0.27662]
[1736261656544,6.85714326,3616.0,3615.3,40.8]
[1736261656745,0.27663,3615.5,3615.4,0.27663]
[1736261657045,7.54862326,3616.0,3615.4,1.455]
[1736261657352,6.85714326,3616.0,3615.4,1.455]
[1736261657646,0.27662,3615.5,3615.4,1.455]
[1736261657841,0.27662,3615.5,3615.4,1.73163]
[1736261658043,3.2078,3616.1,3615.4,1.455]
[1736261658249,0.27662,3615.5,3615.4,1.455]
[1736261658444,0.27662,3615.5,3615.4,1.73163]
[1736261658650,0.27662,3615.5,3615.4,1.455]
[1736261658848,2.64493381,3615.8,3615.1,3.2078]
[1736261659148,5.85273381,3615.3,3614.6,1.489]
[1736261659648,5.85273381,3615.3,3615.1,0.27665]
[1736261659649,0.27665,3615.2,3615.1,0.27665]
[1736261659848,0.27665,3615.1,3614.7,0.27668]
[1736261660146,0.27665,3615.1,3614.6,1.489]
[1736261660147,0.27665,3615.1,3615.0,0.27666]
[1736261660354,0.27665,3615.1,3615.0,1.4008221]
[1736261660558,3.13847714,3615.3,3615.2,0.27665]
[1736261660850,0.27665,3615.1,3615.0,1.4008221]
[1736261661046,0.27665,3615.1,3615.0,0.27666]
[1736261662655,2.86183714,3615.3,3614.8,1.489]
[1736261662850,0.27665,3615.2,3615.1,0.27665]
[1736261663044,5.85273381,3615.7,3614.8,1.489]
[1736261663254,0.27665,3615.2,3615.1,41.07665]
[1736261663458,0.27664,3615.3,3615.2,0.27664]
[1736261663658,0.27665,3615.2,3615.1,41.07665]
[1736261663860,5.85273381,3615.7,3615.1,40.8]
[1736261664065,0.27662,3615.6,3615.2,0.27665]
[1736261664270,5.85273381,3616.5,3615.2,3.2078]
[1736261664463,3.2078,3616.5,3615.6,3.2078]
[1736261664767,0.27655,3616.5,3616.3,0.27656]
[1736261664968,2.5571,3617.1,3616.2,3.2078]
[1736261665171,0.27653,3616.8,3616.7,0.27653]
[1736261665357,3.2078,3617.2,3616.6,1.49]
[1736261665757,0.27653,3616.7,3616.6,1.49]
[1736261665967,0.27653,3616.7,3616.6,1.76654]
[1736261666268,0.27653,3616.7,3616.6,42.29]
[1736261666472,3.2078,3617.2,3616.6,42.29]
[1736261666671,3.2078,3617.2,3616.8,0.27652]
[1736261666672,0.27652,3616.9,3616.8,0.27652]
[1736261667165,0.27652,3616.9,3616.6,42.29]
[1736261667166,3.2078,3617.2,3616.6,42.29]
[1736261667363,0.27653,3616.8,3616.7,0.27653]
[1736261667857,0.27652,3616.9,3616.7,0.27653]
[1736261668062,3.2078,3617.2,3616.6,42.29]
[1736261668366,3.4843,3617.2,3616.7,0.27653]
[1736261668561,3.4843,3617.2,3617.1,0.2765]
[1736261668872,0.2765,3617.1,3617.0,0.27651]
[1736261669172,3.2078,3617.6,3616.6,46.18915]
[1736261669373,0.27647,3617.5,3617.3,0.27648]
[1736261669565,3.2078,3617.6,3616.9,2.64493381]
[1736261669870,0.27647,3617.5,3617.3,0.27648]
[1736261670064,3.2078,3617.6,3616.9,2.64493381]
[1736261670270,0.27646,3617.7,3617.1,3.2078]
[1736261670467,3.14154201,3617.9,3617.8,0.27645]
[1736261670670,3.14154201,3617.9,3617.8,1.76545]
[1736261671171,3.14154201,3617.9,3617.8,42.289]
[1736261671373,3.14154201,3617.9,3617.8,42.56545]
[1736261672067,3.41795201,3618.3,3617.8,1.489]
[1736261672269,3.14154201,3618.3,3617.8,1.489]
[1736261672564,3.2078,3618.5,3617.3,5.85273381]
[1736261672565,3.14154201,3618.0,3617.9,1.489]
[1736261672774,3.14154201,3618.0,3617.9,1.76544]
[1736261672966,3.14154201,3618.0,3617.9,42.289]
[1736261673568,3.14154201,3618.0,3617.9,1.489]
[1736261673963,0.41472266,3618.0,3617.9,1.489]
[1736261674475,0.41472266,3618.0,3617.9,1.76544]
[1736261675369,5.71581731,3618.0,3617.9,1.76544]
[1736261676767,5.71581731,3618.0,3617.9,42.56544]
[1736261677569,1.55891731,3618.0,3617.9,42.56544]
[1736261677764,5.34132139,3618.1,3618.0,0.27643]
[1736261678075,4.2719989,3618.1,3618.0,0.27643]
[1736261678277,4.2719989,3618.1,3618.0,5.27643]
[1736261678475,4.2719989,3618.1,3618.0,0.27643]
[1736261678868,4.2719989,3618.1,3618.0,5.27643]
[1736261679571,3.20210499,3618.8,3618.7,0.27638]
[1736261679775,3.20210499,3618.8,3618.7,1.76538]
[1736261679965,3.20210499,3618.8,3618.7,4.41031381]
[1736261680569,3.20210499,3618.8,3618.7,45.21031381]
[1736261680980,3.20210499,3619.3,3619.2,0.27634]
[1736261681576,3.20210499,3619.3,3619.2,41.07634]
[1736261681977,3.20210499,3619.3,3619.2,40.8]
[1736261682181,3.2078,3619.6,3618.9,1.71136]
[1736261682379,0.27636,3619.0,3618.9,1.435]
[1736261682681,0.27637,3618.8,3618.7,1.435]
[1736261682882,3.2078,3619.1,3618.9,0.27636]
[1736261682883,0.27636,3619.0,3618.9,0.27636]
[1736261683085,0.27636,3618.9,3618.8,0.27637]
[1736261683376,9.46245035,3619.5,3618.7,1.435]
[1736261683377,3.20210499,3619.3,3618.7,4.07993381]
[1736261683579,3.20210499,3619.3,3618.8,3.2078]
[1736261683783,3.20210499,3619.3,3619.2,0.27634]
[1736261683978,3.20210499,3619.3,3619.1,0.27634]
[1736261683979,3.47844499,3619.3,3619.1,0.27634]
[1736261684171,3.20210499,3619.3,3618.9,3.2078]
[1736261684377,3.20210499,3619.3,3619.2,0.27634]
[1736261684575,3.2078,3619.6,3619.5,0.27632]
[1736261684771,3.2078,3619.6,3619.1,2.64493381]
[1736261684976,3.2078,3619.6,3619.2,40.8]
[1736261685181,0.27632,3619.5,3619.4,0.27632]
[1736261685586,3.2078,3619.6,3619.5,0.27632]
[1736261688086,0.27632,3619.5,3619.4,0.27632]
[1736261688387,3.48412,3619.6,3619.5,0.27632]
[1736261688981,3.2078,3619.6,3619.5,0.27632]
[1736261690076,8.4556,3620.2,3619.5,0.27632]
[1736261690280,8.4556,3620.2,3619.4,3.2078]
[1736261690476,0.27629,3619.9,3619.8,0.27629]
[1736261690882,5.2478,3620.2,3620.1,0.27627]
[1736261691080,2.97056,3620.2,3620.1,41.07627]
[1736261691979,2.6943,3620.2,3620.1,41.07627]
[1736261692379,2.97056,3620.2,3620.1,40.8]
[1736261692782,2.97056,3620.2,3620.1,41.07627]
[1736261693189,0.27626,3620.3,3620.2,0.27626]
[1736261693386,0.27625,3620.5,3620.4,0.27624]
[1736261693992,0.27625,3620.5,3620.2,1.435]
[1736261693993,3.2078,3620.6,3620.2,1.435]
[1736261694185,3.2078,3620.6,3619.3,0.69083]
[1736261694385,0.27627,3620.1,3620.0,1.435]
[1736261694782,3.2078,3620.2,3619.7,40.8]
[1736261694979,3.2078,3620.2,3619.7,42.5113]
[1736261694980,0.27629,3619.8,3619.7,42.5113]
[1736261695290,0.27632,3619.6,3619.5,0.27631]
[1736261695480,0.27631,3619.7,3619.6,0.2763]
[1736261695687,0.27631,3619.7,3619.6,41.0763]
[1736261695882,0.2763,3619.8,3619.7,0.2763]
[1736261696185,0.2763,3619.8,3619.7,1.7113]
[1736261698288,3.4841,3619.8,3619.7,1.435]
[1736261700084,3.2078,3619.8,3619.7,1.7113]
[1736261700279,3.48409,3619.8,3619.7,0.2763]
[1736261700685,3.48409,3619.8,3619.6,40.8]
[1736261700686,0.2763,3619.7,3619.6,40.8]
[1736261701489,0.27634,3619.2,3619.1,1.71135]
[1736261701891,0.27634,3619.3,3619.2,0.27633]
[1736261702185,2.7456,3619.7,3619.1,1.435]
[1736261702387,0.27633,3619.5,3619.4,0.27632]
[1736261702995,0.27632,3619.6,3619.5,0.27631]
[1736261703586,3.2078,3619.8,3619.2,40.8]
[1736261703893,0.27633,3619.4,3619.3,0.27632]
[1736261704290,0.27633,3619.4,3619.3,1.65932]
[1736261704587,0.27633,3619.4,3619.3,1.383]
[1736261704791,0.69076,3619.7,3619.2,40.8]
[1736261704999,0.27633,3619.3,3619.2,40.8]
[1736261705392,0.27633,3619.3,3619.2,41.07634]
[1736261705784,0.27633,3619.3,3619.2,40.8]
[1736261705990,0.27633,3619.3,3619.2,41.07634]
[1736261706795,0.27633,3619.3,3619.2,40.8]
[1736261706988,0.27633,3619.3,3619.2,41.07634]
[1736261707293,0.27633,3619.3,3619.2,40.8]
[1736261707686,0.27633,3619.3,3619.2,41.07634]
[1736261707884,2.584,3619.6,3619.2,40.8]
[1736261708188,0.27633,3619.4,3619.3,0.27632]
[1736261708587,2.584,3619.6,3619.2,40.8]
[1736261708793,0.27632,3619.6,3619.5,0.27631]
[1736261709690,6.40990499,3619.8,3619.2,40.8]
[1736261709895,0.27631,3619.7,3619.6,0.2763]
[1736261711091,3.2078,3619.8,3619.3,0.69083]
[1736261711296,0.2763,3619.9,3619.8,0.27629]
[1736261711491,6.91693271,3620.1,3619.2,40.8]
[1736261711693,0.27633,3619.4,3619.3,0.27632]
[1736261712191,0.27633,3619.3,3619.2,40.8]
[1736261712585,0.27636,3619.1,3619.0,1.65935]
[1736261713494,0.27636,3619.1,3619.0,41.07635]
[1736261713694,3.20502964,3619.3,3619.0,40.8]
[1736261713995,0.27635,3619.1,3619.0,41.07635]
[1736261714298,3.2078,3619.1,3618.2,2.5964]
[1736261714599,0.27644,3617.9,3617.8,0.27644]
[1736261714889,0.27644,3617.9,3617.8,40.8]
[1736261715692,0.27644,3617.9,3617.8,41.07645]
[1736261716086,0.27644,3617.9,3617.8,40.8]
[1736261716694,0.27648,3617.4,3617.3,1.383]
[1736261716894,0.27648,3617.4,3617.3,1.65949]
[1736261717298,0.27647,3617.5,3617.4,0.27647]
[1736261717487,0.27648,3617.4,3617.3,42.45948]
[1736261717689,0.27648,3617.4,3617.3,42.183]
[1736261717894,0.27653,3616.8,3616.6,0.27654]
[1736261718193,0.27653,3616.8,3616.7,1.383]
[1736261718393,0.27649,3617.2,3616.7,42.45953]
[1736261718594,0.27652,3616.9,3616.7,42.45953]
[1736261718894,0.27652,3616.8,3616.7,40.8]
[1736261719697,3.2078,3616.9,3616.8,0.27652]
[1736261720000,4.28026263,3617.1,3616.8,3.2078]
[1736261720194,4.28026263,3617.1,3617.0,0.27651]
[1736261720596,4.28026263,3617.1,3617.0,41.07651]
[1736261720788,4.28026263,3617.1,3617.0,43.65281]
[1736261720997,0.27649,3617.3,3617.1,0.27649]
[1736261721193,0.2765,3617.2,3617.0,43.65281]
[1736261721393,0.2765,3617.2,3617.1,0.2765]
[1736261721589,0.2765,3617.2,3617.0,43.3763]
[1736261721590,0.2765,3617.1,3617.0,43.6528]
[1736261721894,0.27649,3617.2,3617.1,0.2765]
[1736261722089,0.2765,3617.1,3617.0,43.65281]
[1736261722294,0.2765,3617.1,3617.0,43.3763]
[1736261722495,0.2765,3617.1,3617.0,40.8]
[1736261722901,0.27655,3616.4,3616.3,1.383]
[1736261723294,0.27655,3616.4,3616.3,42.183]
[1736261723498,3.2078,3616.8,3616.3,42.183]
[1736261723698,3.2078,3616.8,3616.3,42.45956]
[1736261723699,0.27654,3616.6,3616.3,42.45956]
[1736261724001,0.27655,3616.4,3616.3,42.183]
[1736261724192,3.48435,3616.4,3616.3,42.183]
[1736261724700,3.48435,3616.4,3616.3,40.8]
[1736261724999,3.2078,3616.4,3616.3,41.07656]
[1736261725206,3.48435,3616.4,3616.3,40.8]
[1736261726397,3.2078,3616.4,3616.3,41.07656]
[1736261726603,3.2078,3616.4,3616.3,42.45956]
[1736261726999,3.2078,3616.4,3616.3,42.183]
[1736261727202,3.2078,3616.9,3616.3,42.183]
[1736261727697,0.27654,3616.6,3616.4,0.27655]
[1736261728096,0.27654,3616.6,3616.3,42.183]
[1736261728296,0.27654,3616.7,3616.4,0.27655]
[1736261728494,0.27654,3616.6,3616.4,0.27655]
[1736261728702,0.27654,3616.7,3616.5,0.27654]
[1736261729298,3.2078,3616.9,3616.3,42.183]
[1736261729503,0.27653,3616.8,3616.6,0.27654]
[1736261729807,3.2078,3617.4,3616.5,2.08785774]
[1736261730006,3.20103856,3617.5,3615.5,9.31613]
[1736261730007,3.2078,3617.0,3616.1,3.2078]
[1736261730196,3.2078,3617.0,3616.2,0.27656]
[1736261730500,3.2078,3617.0,3616.1,3.2078]
[1736261730501,0.27651,3617.0,3616.8,0.27652]
[1736261731005,0.27652,3616.9,3616.7,0.27653]
[1736261731197,0.27652,3616.8,3616.7,0.27653]
[1736261731400,0.27652,3616.8,3616.6,5.9146]
[1736261731699,2.6283,3617.8,3616.3,40.8]
[1736261731700,0.27653,3616.7,3616.3,40.8]
[1736261731899,2.08785774,3616.5,3615.6,6.6697]
[1736261732103,0.27658,3616.1,3615.9,0.27659]
[1736261732298,2.7392,3616.6,3616.0,40.8]
[1736261732494,3.48432,3616.9,3616.4,2.08785774]
[1736261732800,0.27652,3616.9,3616.8,2.08785774]
[1736261732995,0.27652,3616.9,3616.8,0.27652]
[1736261733404,3.20103856,3617.0,3616.9,0.27652]
[1736261733809,3.20103856,3617.0,3616.8,2.08785774]
[1736261734002,3.47754856,3617.0,3616.8,2.08785774]
[1736261734203,0.27651,3617.0,3616.9,40.8]
[1736261734502,0.27651,3617.0,3616.9,41.07652]
[1736261734906,0.27651,3617.1,3616.9,41.07652]
[1736261735103,0.27651,3617.0,3616.9,40.8]
[1736261735508,0.27651,3617.0,3616.9,0.27652]
[1736261735703,0.69122,3617.4,3616.7,3.48432]
[1736261736004,0.27652,3616.9,3616.8,0.27652]
[1736261736209,0.27651,3617.0,3616.7,44.0078]
[1736261736507,6.9663618,3617.5,3616.7,44.0078]
[1736261736698,0.27652,3617.0,3616.9,0.27652]
[1736261737110,0.27652,3616.9,3616.8,0.27652]
[1736261737611,0.27652,3616.8,3616.7,44.28433]
[1736261737810,0.27652,3616.9,3616.8,0.27652]
[1736261738303,3.2078,3617.6,3616.7,45.3548]
[1736261738611,0.27651,3617.0,3616.7,45.3548]
[1736261738800,6.88447141,3617.5,3616.7,45.3548]
[1736261739211,0.27651,3617.0,3616.9,0.27651]
[1736261739411,0.27652,3616.9,3616.8,0.27652]
[1736261740110,7.57566141,3617.5,3616.8,1.347]
[1736261740313,0.27652,3616.9,3616.8,1.62352]
[1736261741808,7.57566141,3617.5,3616.8,1.347]
[1736261742007,6.88447141,3617.5,3616.8,1.347]
[1736261742202,0.2765,3617.2,3617.1,0.2765]
[1736261742806,0.27649,3617.3,3617.2,0.27649]
[1736261743407,0.2765,3617.2,3617.1,0.2765]
[1736261743708,3.2078,3617.6,3616.8,1.347]
[1736261744007,0.69118,3617.5,3617.0,0.27651]
[1736261744611,0.27651,3617.1,3617.0,0.27651]
[1736261745911,3.2078,3617.6,3616.8,1.347]
[1736261746107,3.2078,3617.6,3617.0,0.2765]
[1736261746108,0.2765,3617.1,3617.0,0.2765]
[1736261747108,0.2765,3617.2,3617.1,0.27649]
[1736261747304,2.64267567,3617.2,3616.7,3.2078]
[1736261747509,0.27657,3616.2,3616.1,0.27657]
[1736261747707,5.94023856,3617.8,3617.1,0.2765]
[1736261747910,3.47749856,3617.7,3617.6,0.27646]
[1736261748110,3.20103856,3617.7,3617.3,3.2078]
[1736261748307,3.20103856,3617.7,3617.6,0.27646]
[1736261748509,3.20103856,3617.7,3617.3,3.2078]
[1736261748818,0.27647,3617.5,3617.3,3.2078]
[1736261749218,5.947,3617.8,3617.2,1.347]
[1736261749415,0.27648,3617.5,3617.2,1.347]
[1736261749717,0.27648,3617.4,3617.2,1.347]
[1736261750807,5.947,3617.8,3617.2,1.347]
[1736261751020,0.27649,3617.3,3617.2,1.347]
[1736261752916,3.48429,3617.3,3617.2,1.347]
[1736261753116,0.69129,3617.0,3616.5,40.8]
[1736261753312,0.69129,3617.0,3616.4,2.7579]
[1736261753313,0.27653,3616.7,3616.6,1.347]
[1736261753714,0.27653,3616.7,3616.6,4.5548]
[1736261754010,0.27653,3616.7,3616.6,1.347]
[1736261758521,2.13867253,3616.8,3616.3,2.36405674]
[1736261758717,2.82999253,3616.8,3616.4,1.347]
[1736261758922,0.27655,3616.5,3616.4,1.347]
[1736261760127,2.42303563,3616.5,3616.4,1.347]
[1736261760327,8.97460088,3616.5,3615.7,4.30953401]
[1736261760625,8.97460088,3616.5,3615.7,2.0914767]
[1736261760626,5.57189674,3615.8,3615.7,2.0914767]
[1736261760814,5.57189674,3615.8,3615.7,0.8670567]
[1736261761020,12.40001199,3615.8,3615.7,0.2917467]
[1736261761320,12.40001199,3615.8,3615.7,6.7e-06]
[1736261761523,17.49244439,3615.8,3615.1,1.296]
[1736261761728,0.27665,3615.2,3615.1,1.296]
[1736261763029,0.27665,3615.1,3615.0,40.8]
[1736261763224,0.27665,3615.1,3615.0,42.096]
[1736261764333,0.27665,3615.1,3615.0,40.8]
[1736261765727,0.69175105,3615.1,3615.0,40.8]
[1736261767425,0.41510105,3615.1,3614.0,2.7074]
[1736261767627,0.27672,3614.2,3614.1,1.296]
[1736261770126,2.08749674,3614.3,3613.8,3.2078]
[1736261770332,5.9283,3614.1,3613.3,3.2078]
[1736261770526,2.6788,3614.2,3613.7,0.27676]
[1736261770527,0.27676,3613.8,3613.7,0.27676]
[1736261770721,3.89957,3614.5,3613.6,2.08749674]
[1736261770936,0.27676,3613.7,3613.6,2.36425674]
[1736261771137,0.27676,3613.7,3613.6,43.16425674]
[1736261771326,0.27676,3613.7,3613.6,41.07677]
[1736261771527,0.27676,3613.7,3613.6,40.8]
[1736261773732,3.48456,3613.7,3613.6,40.8]
[1736261774131,5.29529674,3613.7,3612.9,3.2078]
[1736261774328,5.29529674,3613.7,3612.4,4.70769674]
[1736261774329,5.29529674,3613.7,3612.8,1.297]
[1736261774536,1.66082,3613.2,3612.6,1.297]
[1736261774835,0.27684,3612.7,3612.6,1.297]
[1736261775138,0.27684,3612.7,3612.6,42.097]
[1736261775736,0.27681,3613.1,3612.6,42.097]
[1736261775933,0.2768,3613.2,3613.0,0.27681]
[1736261776437,2.1388719,3613.6,3612.9,2.08749674]
[1736261776630,0.2768,3613.2,3613.1,0.2768]
[1736261777134,0.69195,3613.5,3612.6,6.03359674]
[1736261777336,0.2768,3613.2,3613.1,40.8]
[1736261778335,6.982316,3613.2,3612.1,4.5048]
[1736261778533,0.27688,3612.2,3612.1,4.5048]
[1736261778839,0.27688,3612.2,3612.1,44.0078]
[1736261779134,0.27688,3612.2,3612.1,40.8]
[1736261779336,6.76171149,3612.2,3610.6,0.2776]
[1736261779542,0.27693,3611.6,3611.3,0.27695]
[1736261779836,3.2078,3611.5,3610.7,5.2037]
[1736261780138,2.08749674,3611.8,3611.0,3.2078]
[1736261780441,2.08749674,3611.8,3611.1,1.297]
[1736261780628,2.08749674,3611.8,3611.2,40.8]
[1736261780830,0.27695,3611.3,3611.2,40.8]
[1736261781841,0.27698,3610.8,3610.7,1.297]
[1736261782035,0.277,3610.6,3610.5,2.7093]
[1736261782235,0.277,3610.6,3610.5,40.8]
[1736261782842,3.2078,3610.8,3609.9,3.2078]
[1736261782843,0.27704,3610.0,3609.9,3.2078]
[1736261783043,0.27704,3610.0,3609.7,1.297]
[1736261783342,1.38538,3609.7,3608.7,0.2776]
[1736261783540,1.38538,3609.7,3607.0,11.50660207]
[1736261783541,2.65208738,3608.8,3607.5,3.2078]
[1736261783839,3.2078,3607.8,3607.3,6.48189543]
[1736261784035,3.48504,3607.4,3607.3,6.48189543]
[1736261784235,3.2078,3608.0,3607.3,6.48189543]
[1736261784437,6.79627495,3608.7,3608.2,0.27718]
[1736261784642,0.27721,3608.0,3607.3,6.75914543]
[1736261784840,3.2078,3608.3,3607.4,1.394]
[1736261785136,3.2078,3608.3,3607.3,0.77245543]
[1736261785330,3.2078,3607.7,3606.7,3.2078]
[1736261785643,3.2078,3607.7,3607.1,3.2078]
[1736261785841,0.27721,3607.9,3607.3,0.27725]
[1736261786031,3.2078,3608.1,3607.7,0.27722]
[1736261786235,2.629,3608.8,3608.1,0.27719]
[1736261786236,3.48494,3608.8,3608.1,0.27719]
[1736261786440,3.2078,3608.8,3608.4,2.65208738]
[1736261786839,3.2078,3608.8,3608.7,0.27714]
[1736261787039,3.2078,3609.3,3608.5,2.5065]
[1736261787242,0.27711,3609.2,3608.6,0.27715]
[1736261787743,3.2078,3609.3,3608.5,0.01178493]
[1736261787942,3.2078,3609.3,3608.8,2.65208738]
[1736261788140,3.2078,3609.3,3608.9,2.5833]
[1736261788442,3.2078,3609.3,3609.0,0.27712]
[1736261788750,3.2078,3609.3,3608.9,2.5833]
[1736261788941,3.2078,3609.3,3609.0,0.27712]
[1736261789244,3.2078,3609.9,3609.2,5.85988738]
[1736261789439,3.2078,3609.9,3609.8,0.27706]
[1736261789836,3.2078,3609.9,3609.2,3.2078]
[1736261790042,3.2078,3610.1,3609.1,2.65208738]
[1736261790346,3.2078,3609.6,3609.5,2.65208738]
[1736261790544,3.2078,3609.6,3609.2,0.27711]
[1736261790746,3.2078,3609.6,3609.5,40.8]
[1736261791241,3.48488,3609.6,3609.5,40.8]
[1736261791841,0.27711,3609.1,3608.8,4.13708738]
[1736261792047,3.2078,3609.1,3608.7,1.539]
[1736261792241,0.27713,3609.0,3608.8,40.8]
[1736261792445,3.2078,3609.1,3608.8,40.8]
[1736261793038,3.2078,3609.1,3608.1,3.2078]
[1736261793039,6.90491634,3609.0,3607.7,9.139]
[1736261793349,0.27719,3608.2,3607.9,1.539]
[1736261793645,3.2078,3608.3,3607.9,1.539]
[1736261793845,3.2078,3608.3,3608.0,1.539]
[1736261794149,2.6921,3609.2,3608.0,1.539]
[1736261794150,3.2078,3608.8,3608.3,0.27717]
[1736261794357,3.2078,3608.4,3608.0,1.539]
[1736261794541,3.2078,3608.4,3607.9,1.539]
[1736261794741,3.2078,3608.4,3608.3,0.27718]
[1736261794942,3.2078,3608.4,3608.3,1.81618]
[1736261795139,3.4849,3609.4,3608.8,0.27713]
[1736261795343,3.4849,3609.4,3608.3,9.7468]
[1736261795344,3.2078,3609.4,3609.0,0.27712]
[1736261795645,3.48489,3609.4,3608.8,0.27713]
[1736261795945,3.2078,3609.4,3608.7,2.5841]
[1736261796149,3.2078,3609.0,3608.6,2.65208738]
[1736261796543,3.2078,3609.0,3608.3,1.539]
[1736261796745,3.2078,3608.6,3608.4,1.539]
[1736261797543,3.2078,3608.6,3607.6,1.539]
[1736261797744,3.2078,3608.2,3607.8,0.27721]
[1736261797939,3.2078,3608.2,3607.4,0.27724]
[1736261797940,0.27721,3607.9,3607.4,0.27724]
[1736261798140,6.92112725,3608.5,3606.9,0.2776]
[1736261798141,3.2078,3607.8,3606.9,0.2776]
[1736261798447,3.2078,3607.4,3607.0,1.539]
[1736261798648,3.2078,3607.4,3607.3,0.27725]
[1736261799447,3.2078,3608.1,3607.1,3.2078]
[1736261799745,3.2078,3608.1,3607.0,1.539]
[1736261799949,3.2078,3607.6,3607.5,0.27724]
[1736261800145,3.2078,3608.2,3608.0,0.27719]
[1736261800458,3.2078,3608.2,3607.3,0.27725]
[1736261800644,3.2078,3608.2,3607.4,40.8]
[1736261800948,10.1104249,3608.1,3607.4,40.8]
[1736261801153,10.3876149,3608.1,3607.7,0.27722]
[1736261801344,3.2078,3608.1,3607.4,40.8]
[1736261801850,3.2078,3608.1,3608.0,0.2772]
[1736261802056,3.2078,3608.5,3608.0,2.92928738]
[1736261802242,3.2078,3609.1,3608.1,1.539]
[1736261802444,3.2078,3609.1,3608.2,43.4493]
[1736261802657,3.2078,3609.1,3608.3,0.69295]
[1736261802954,5.7979,3609.5,3609.2,0.27711]
[1736261803149,5.7979,3609.5,3608.5,0.69291]
[1736261803344,0.27709,3609.4,3608.5,0.69291]
[1736261803547,5.7979,3609.5,3608.6,40.8]
[1736261803747,6.07498,3609.5,3609.1,0.27711]
[1736261804049,5.7979,3609.5,3608.6,43.3032]
[1736261804249,5.7979,3609.5,3609.2,0.2771]
[1736261804849,3.2078,3609.5,3608.6,43.3032]
[1736261805055,3.2078,3609.5,3608.7,3.19627]
[1736261805349,3.2078,3609.5,3609.4,0.27709]
[1736261805849,3.2078,3609.5,3609.3,1.539]
[1736261805850,3.2078,3610.0,3609.3,1.539]
[1736261806054,3.2078,3609.6,3609.4,42.339]
[1736261806251,0.27708,3609.5,3609.4,40.8]
[1736261806450,0.27708,3609.5,3608.7,2.5034]
[1736261806451,0.27708,3609.5,3609.2,0.2771]
[1736261806651,3.2078,3609.6,3608.9,1.81613]
[1736261806847,2.6207,3609.7,3608.2,2.6493]
[1736261806848,3.2078,3609.2,3608.2,2.6493]
[1736261807045,3.2078,3608.3,3608.2,0.27718]
[1736261807349,3.2078,3608.3,3608.0,1.539]
[1736261807350,3.48494,3608.8,3608.5,0.27716]
[1736261807553,3.2078,3608.8,3608.7,0.27714]
[1736261809156,0.27715,3608.7,3608.4,0.27716]
[1736261809457,3.2078,3608.8,3607.9,1.539]
[1736261809649,3.2078,3608.4,3608.2,0.27718]
[1736261809956,6.80083855,3608.3,3607.3,1.539]
[1736261810158,3.2078,3607.7,3607.6,0.27723]
[1736261810451,3.2078,3607.7,3606.8,4.7468]
[1736261810645,3.2078,3607.7,3607.4,0.27724]
[1736261810844,3.2078,3607.7,3607.5,0.27724]
[1736261811050,3.2078,3607.7,3607.6,0.27723]
[1736261811250,0.69313,3607.4,3606.4,0.27732]
[1736261811455,6.95627587,3607.6,3606.4,0.27732]
[1736261811456,3.2078,3607.3,3606.5,3.2078]
[1736261811652,3.2078,3607.3,3607.2,0.27726]
[1736261812163,3.2078,3607.3,3606.6,42.339]
[1736261812653,3.2078,3607.3,3606.6,40.8]
[1736261812859,3.2078,3607.3,3607.1,0.27726]
[1736261813053,3.2078,3607.3,3606.8,1.539]
[1736261813251,3.2078,3607.3,3606.6,40.8]
[1736261813557,3.2078,3606.9,3606.6,40.8]
[1736261813859,3.48509,3606.9,3606.6,41.0773]
[1736261814050,3.2078,3606.9,3606.6,40.8]
[1736261814251,3.2078,3606.9,3606.4,0.27731]
[1736261814252,0.27729,3606.8,3606.4,0.27731]
[1736261814544,2.65208738,3607.7,3605.7,2.65208738]
[1736261814545,3.2078,3606.5,3605.7,2.65208738]
[1736261814749,3.2078,3606.5,3606.0,0.27735]
[1736261814750,0.27733,3606.4,3606.0,0.27735]
[1736261814960,3.2078,3606.5,3605.9,40.8]
[1736261815160,3.2078,3606.5,3606.0,1.54]
[1736261815349,3.2078,3606.1,3605.9,40.8]
[1736261815550,3.4851,3606.7,3606.3,0.27732]
[1736261815753,0.27731,3606.6,3606.1,0.27734]
[1736261815959,0.27731,3606.6,3606.0,1.54]
[1736261816256,3.4851,3606.7,3606.4,0.27732]
[1736261816452,3.2078,3606.7,3606.6,0.27731]
[1736261816651,3.2078,3606.7,3606.6,41.07731]
[1736261817259,3.2078,3607.1,3607.0,0.27728]
[1736261817458,3.2078,3607.1,3606.6,40.8]
[1736261817653,3.2078,3607.1,3606.9,0.27728]
[1736261817954,3.2078,3607.1,3607.0,0.27728]
[1736261818955,3.48507,3607.1,3606.8,0.27728]
[1736261819145,3.2078,3607.1,3606.7,1.54]
[1736261819654,0.27729,3606.9,3606.7,1.54]
[1736261819854,3.2078,3607.1,3606.7,1.54]